bitfinex-derivatives/quotes_BTCF0:USTF0_20250222
["timestamp","ask_amount","ask_price","bid_price","bid_amount"]
[1740211997847,0.011,96283.0,96282.0,0.2107605]
[1740212006853,0.06151159,96283.0,96282.0,0.2107605]
[1740212009550,0.05151159,96283.0,96282.0,0.2107605]
[1740212009751,0.06151159,96283.0,96282.0,0.2107605]
[1740212011159,0.16612301,96283.0,96282.0,0.2107605]
[1740212012454,0.37388131,96283.0,96282.0,0.2107605]
[1740212013045,0.16612301,96283.0,96282.0,0.2107605]
[1740212015051,0.011,96283.0,96282.0,0.2107605]
[1740212015251,0.2187583,96283.0,96282.0,0.2107605]
[1740212022760,0.37386015,96283.0,96282.0,0.2107605]
[1740212023165,0.37386015,96283.0,96282.0,0.003]
[1740212023464,0.37386015,96283.0,96282.0,0.2107605]
[1740212026074,0.26927299,96283.0,96282.0,0.2107605]
[1740212026576,0.26927299,96283.0,96282.0,0.003]
[1740212026770,0.26927299,96283.0,96282.0,0.2107605]
[1740212028265,0.63007299,96283.0,96282.0,0.2107605]
[1740212028573,0.63007299,96283.0,96282.0,0.003]
[1740212028778,0.63007299,96283.0,96282.0,0.2107605]
[1740212029662,0.63007299,96283.0,96282.0,0.003]
[1740212036276,0.26927299,96283.0,96282.0,0.003]
[1740212036478,0.63007299,96283.0,96282.0,0.003]
[1740212039482,0.26927299,96283.0,96282.0,0.003]
[1740212039683,0.63007299,96283.0,96282.0,0.003]
[1740212043976,0.2077821,96272.0,96270.0,0.2196]
[1740212044276,0.5785821,96272.0,96271.0,0.0664]
[1740212044484,0.5785821,96272.0,96271.0,0.2741842]
[1740212044682,0.5785821,96272.0,96271.0,0.0664]
[1740212045078,0.3708,96272.0,96271.0,0.2741842]
[1740212045385,0.5891505,96272.0,96271.0,0.2751842]
[1740212046282,0.5901505,96272.0,96271.0,0.036]
[1740212048280,0.64066519,96272.0,96271.0,0.036]
[1740212049575,0.64066519,96272.0,96248.0,0.3608]
[1740212049576,0.2078123,96258.0,96248.0,0.3608]
[1740212049779,0.2078209,96254.0,96253.0,0.2428231]
[1740212049986,0.2178209,96254.0,96253.0,0.2428231]
[1740212050581,0.01,96254.0,96253.0,0.2428231]
[1740212050980,0.011,96254.0,96253.0,0.2428231]
[1740212051882,0.2188209,96254.0,96253.0,0.2428231]
[1740212052089,0.2188209,96254.0,96253.0,0.035]
[1740212052987,0.2198209,96254.0,96253.0,0.2428231]
[1740212053185,0.2198209,96254.0,96253.0,0.035]
[1740212053584,0.2198209,96254.0,96253.0,0.2428231]
[1740212053979,0.012,96254.0,96253.0,0.2428231]
[1740212054785,0.2198209,96254.0,96253.0,0.2428231]
[1740212055191,0.2198209,96254.0,96253.0,0.035]
[1740212055580,0.2198209,96254.0,96253.0,0.2428231]
[1740212056183,0.2198209,96254.0,96253.0,0.035]
[1740212056490,0.2198209,96254.0,96253.0,0.2428231]
[1740212057987,0.012,96254.0,96253.0,0.2428231]
[1740212058191,0.11368,96254.0,96253.0,0.2428231]
[1740212058390,0.3215009,96254.0,96253.0,0.2428231]
[1740212059387,0.3214609,96254.0,96253.0,0.2428231]
[1740212059787,0.3734162,96254.0,96252.0,0.03884351]
[1740212060001,0.3634162,96254.0,96253.0,0.2078231]
[1740212060296,0.3734162,96254.0,96253.0,0.2078231]
[1740212061496,0.3214609,96254.0,96253.0,0.2078231]
[1740212063293,0.3213809,96254.0,96253.0,0.2078231]
[1740212063489,0.2078252,96252.0,96251.0,0.2732259]
[1740212063690,0.2178252,96252.0,96251.0,0.2732259]
[1740212064705,0.2198252,96252.0,96251.0,0.2732259]
[1740212068904,0.2198252,96252.0,96251.0,0.0332]
[1740212069798,0.0519618,96243.0,96240.0,0.22032]
[1740212070004,0.2078408,96245.0,96244.0,0.2078404]
[1740212070203,0.2178408,96245.0,96244.0,0.2598009]
[1740212070909,0.22810202,96245.0,96244.0,0.2598009]
[1740212071214,0.22910202,96245.0,96244.0,0.2918009]
[1740212072818,0.23010202,96245.0,96244.0,0.2918009]
[1740212075019,0.23010202,96245.0,96244.0,0.3234009]
[1740212078421,0.23010202,96245.0,96244.0,0.2918009]
[1740212079523,0.38487892,96245.0,96244.0,0.2918009]
[1740212081025,0.38487892,96245.0,96244.0,0.2598009]
[1740212081322,0.17703812,96245.0,96241.0,0.0324]
[1740212081510,0.259808,96243.0,96242.0,0.2598036]
[1740212081716,0.269808,96243.0,96242.0,0.2598036]
[1740212082217,0.2078447,96244.0,96243.0,0.2598036]
[1740212082415,0.2178447,96244.0,96243.0,0.2598036]
[1740212083415,0.2188447,96244.0,96243.0,0.2598036]
[1740212083616,0.2198447,96244.0,96243.0,0.2598036]
[1740212085225,0.2188447,96244.0,96243.0,0.2598036]
[1740212088912,0.26937707,96244.0,96243.0,0.2598036]
[1740212089218,0.207849,96241.0,96240.0,0.2196]
[1740212089417,0.217849,96241.0,96240.0,0.2196]
[1740212089619,0.248649,96241.0,96240.0,0.2196]
[1740212090127,0.248649,96241.0,96240.0,0.2078512]
[1740212091127,0.249649,96241.0,96240.0,0.2078512]
[1740212092023,0.2598215,96238.0,96237.0,0.2078568]
[1740212092223,0.2078576,96237.0,96236.0,0.035]
[1740212092426,0.6416576,96237.0,96236.0,0.035]
[1740212093317,0.6426576,96237.0,96236.0,0.035]
[1740212095031,0.6436576,96237.0,96236.0,0.035]
[1740212095230,0.7466176,96237.0,96236.0,0.035]
[1740212096529,0.79714997,96237.0,96236.0,0.035]
[1740212103037,0.79738997,96237.0,96236.0,0.035]
[1740212103228,0.33338997,96237.0,96236.0,0.035]
[1740212103431,1.15818997,96237.0,96236.0,0.035]
[1740212104734,1.05498997,96237.0,96236.0,0.035]
[1740212104929,1.15826997,96237.0,96236.0,0.035]
[1740212105929,1.15822997,96237.0,96236.0,0.035]
[1740212106130,1.05498997,96237.0,96236.0,0.035]
[1740212106328,1.15822997,96237.0,96236.0,0.0015833]
[1740212107828,1.05498997,96237.0,96236.0,0.0015833]
[1740212108024,1.15814997,96237.0,96236.0,0.0015833]
[1740212108633,1.14814997,96237.0,96236.0,0.0015833]
[1740212108835,1.11764997,96237.0,96236.0,0.0015833]
[1740212109037,1.12764997,96237.0,96236.0,0.0015833]
[1740212109237,1.0671176,96237.0,96236.0,0.0015833]
[1740212109438,0.9314576,96237.0,96236.0,0.2094431]
[1740212109637,0.5706576,96237.0,96236.0,0.2094431]
[1740212110240,0.5706576,96237.0,96236.0,0.12876954]
[1740212110640,0.5806576,96237.0,96236.0,0.12876954]
[1740212112933,0.2078598,96236.0,96235.0,0.2410598]
[1740212113137,0.2178598,96236.0,96235.0,0.2410598]
[1740212114138,0.2188598,96236.0,96235.0,0.2410598]
[1740212114541,0.2198598,96236.0,96235.0,0.2410598]
[1740212116326,0.002,96236.0,96235.0,0.2410598]
[1740212118434,0.15464565,96239.0,96235.0,0.2528]
[1740212118638,0.01026122,96245.0,96235.0,0.3047651]
[1740212118839,0.18568213,96247.0,96246.0,0.2078382]
[1740212119041,0.18568213,96247.0,96246.0,0.2178382]
[1740212119243,0.1960107,96247.0,96246.0,0.2178382]
[1740212119537,0.1960107,96247.0,96246.0,0.2489382]
[1740212119739,0.18568213,96247.0,96246.0,0.2489382]
[1740212120647,0.18568213,96247.0,96246.0,0.2499382]
[1740212121950,0.18568213,96247.0,96246.0,0.2687382]
[1740212122741,0.00015583,96247.0,96246.0,0.4883382]
[1740212128655,0.36235924,96257.0,96256.0,0.2078166]
[1740212128656,0.00155924,96257.0,96256.0,0.2078166]
[1740212128949,0.0519476,96269.0,96268.0,0.2077907]
[1740212128950,0.2390897,96269.0,96268.0,0.2077907]
[1740212129158,0.2910381,96269.0,96268.0,0.2077907]
[1740212129758,0.0313,96269.0,96268.0,0.2077907]
[1740212129955,0.2490885,96269.0,96268.0,0.2077907]
[1740212130365,0.2390885,96269.0,96268.0,0.2077907]
[1740212130891,0.25965639,96269.0,96268.0,0.2077907]
[1740212132070,0.29585639,96269.0,96268.0,0.2077907]
[1740212132392,0.29985639,96269.0,96268.0,0.2077907]
[1740212134573,0.09206789,96269.0,96268.0,0.2077907]
[1740212134774,0.29985639,96269.0,96268.0,0.2077907]
[1740212146258,0.09206789,96269.0,96265.0,0.01]
[1740212146567,0.2078037,96262.0,96261.0,0.3216965]
[1740212146766,0.5686037,96262.0,96261.0,0.3216965]
[1740212146965,0.6018037,96262.0,96261.0,0.3216965]
[1740212148063,0.6048037,96262.0,96261.0,0.3216965]
[1740212148964,0.6058037,96262.0,96261.0,0.3216965]
[1740212156003,0.65632807,96262.0,96261.0,0.3216965]
[1740212158293,0.29552807,96262.0,96261.0,0.3216965]
[1740212158592,0.65632807,96262.0,96261.0,0.3216965]
[1740212160183,0.68832807,96262.0,96261.0,0.3216965]
[1740212168876,0.68832807,96262.0,96258.0,0.09144584]
[1740212168877,0.2078101,96259.0,96258.0,0.09144584]
[1740212169083,0.207836,96247.0,96246.0,0.39448347]
[1740212169284,0.568636,96247.0,96246.0,0.39448347]
[1740212169581,0.664336,96247.0,96246.0,0.39448347]
[1740212169779,0.664336,96247.0,96246.0,0.19664567]
[1740212169974,0.674336,96247.0,96246.0,0.18664567]
[1740212170281,0.674336,96247.0,96246.0,0.39448387]
[1740212171774,0.674336,96247.0,96246.0,0.39548387]
[1740212175586,0.829157,96247.0,96246.0,0.2088382]
[1740212180399,0.674336,96247.0,96246.0,0.2088382]
[1740212190187,0.4261,96247.0,96246.0,0.2188382]
[1740212190393,0.4261,96247.0,96246.0,0.2833382]
[1740212190596,0.633936,96247.0,96246.0,0.2833382]
[1740212195009,0.4261,96247.0,96246.0,0.2833382]
[1740212195315,0.25993073,96256.0,96255.0,0.2078188]
[1740212195506,0.29063073,96256.0,96255.0,0.2078188]
[1740212195700,0.29063073,96256.0,96255.0,0.2410188]
[1740212196205,0.30063073,96256.0,96255.0,0.2410188]
[1740212196601,0.30163073,96256.0,96255.0,0.2410188]
[1740212196798,0.30163073,96256.0,96255.0,0.2420188]
[1740212197494,0.29163073,96256.0,96255.0,0.2420188]
[1740212197896,0.30163073,96256.0,96255.0,0.2420188]
[1740212199199,0.24967653,96256.0,96255.0,0.2420188]
[1740212201894,0.23967653,96256.0,96255.0,0.2420188]
[1740212202094,0.24967653,96256.0,96255.0,0.2420188]
[1740212203390,0.03185583,96256.0,96255.0,0.2420188]
[1740212203590,0.24967243,96256.0,96255.0,0.2420188]
[1740212204100,0.23967243,96256.0,96255.0,0.2420188]
[1740212204303,0.24967243,96256.0,96255.0,0.2420188]
[1740212205806,0.23967243,96256.0,96255.0,0.2420188]
[1740212206104,0.24967243,96256.0,96255.0,0.2088188]
[1740212207306,0.23967243,96256.0,96255.0,0.2088188]
[1740212207609,0.24967243,96256.0,96255.0,0.2088188]
[1740212214710,0.23967243,96256.0,96255.0,0.2088188]
[1740212215013,0.24967243,96256.0,96255.0,0.2088188]
[1740212215814,0.28047243,96256.0,96255.0,0.2088188]
[1740212216011,0.64127243,96256.0,96255.0,0.2088188]
[1740212216719,0.42345583,96256.0,96255.0,0.2088188]
[1740212216907,0.63127243,96256.0,96255.0,0.2088188]
[1740212217514,0.64127243,96256.0,96255.0,0.2088188]
[1740212217814,0.03185583,96256.0,96255.0,0.2088188]
[1740212218018,0.04185583,96256.0,96255.0,0.2088188]
[1740212218315,0.03185583,96256.0,96255.0,0.2088188]
[1740212218500,0.03185583,96256.0,96255.0,0.2188188]
[1740212218704,0.154821,96264.0,96263.0,0.2078015]
[1740212219015,0.154821,96264.0,96263.0,0.2178015]
[1740212220008,0.156821,96264.0,96263.0,0.2178015]
[1740212220203,0.160821,96264.0,96263.0,0.2178015]
[1740212221519,0.006,96264.0,96263.0,0.2178015]
[1740212229121,0.2137993,96264.0,96263.0,0.2178015]
[1740212230723,0.2137993,96264.0,96263.0,0.2078015]
[1740212230921,0.2078144,96257.0,96256.0,0.2597524]
[1740212231117,0.2078144,96257.0,96256.0,0.2078015]
[1740212231118,0.5786144,96257.0,96256.0,0.2078015]
[1740212231515,0.6422144,96257.0,96256.0,0.2078015]
[1740212232223,0.6442144,96257.0,96256.0,0.2088015]
[1740212233019,0.6764144,96257.0,96256.0,0.2088015]
[1740212235427,0.6764144,96257.0,96256.0,0.001]
[1740212236115,0.207836,96247.0,96246.0,0.00015583]
[1740212236322,0.2078425,96244.0,96243.0,0.00155839]
[1740212236523,0.2078533,96239.0,96226.0,0.0519698]
[1740212236716,0.2178533,96239.0,96238.0,0.13674567]
[1740212237826,0.2178533,96239.0,96238.0,0.08684567]
[1740212238830,0.2188533,96239.0,96238.0,0.08684567]
[1740212239226,0.2188533,96239.0,96234.0,0.2085835]
[1740212239227,0.011,96239.0,96234.0,0.2085835]
[1740212239423,0.5786598,96236.0,96234.0,0.2078635]
[1740212239936,0.6105598,96236.0,96234.0,0.2078635]
[1740212240136,0.6105598,96236.0,96235.0,0.20895118]
[1740212241730,0.6115598,96236.0,96235.0,0.20895118]
[1740212242332,0.6125598,96236.0,96235.0,0.20895118]
[1740212246436,0.2517598,96236.0,96235.0,0.20895118]
[1740212246744,0.6125598,96236.0,96235.0,0.20895118]
[1740212250241,0.6025598,96236.0,96235.0,0.20895118]
[1740212250534,0.6125598,96236.0,96235.0,0.20895118]
[1740212252745,0.6125598,96236.0,96235.0,0.00108918]
[1740212256644,0.2517598,96236.0,96235.0,0.00108918]
[1740212260143,0.6125598,96236.0,96235.0,0.00108918]
[1740212260643,0.6125598,96236.0,96235.0,0.20895118]
[1740212261641,0.6125598,96236.0,96235.0,0.00108918]
[1740212261841,0.6125598,96236.0,96235.0,0.20895118]
[1740212262741,0.6025598,96236.0,96235.0,0.20895118]
[1740212263340,0.6125598,96236.0,96235.0,0.20895118]
[1740212264840,0.3728,96236.0,96235.0,0.20895118]
[1740212265044,0.3628,96236.0,96235.0,0.20895118]
[1740212265450,0.002,96236.0,96235.0,0.20895118]
[1740212266845,0.002,96236.0,96235.0,0.22519573]
[1740212267047,0.154821,96240.0,96235.0,0.01733373]
[1740212267251,0.154821,96240.0,96239.0,0.2078533]
[1740212267443,0.154821,96240.0,96239.0,0.22409785]
[1740212267643,0.154821,96240.0,96239.0,0.25609785]
[1740212268151,0.155821,96240.0,96239.0,0.25609785]
[1740212269949,0.155821,96240.0,96239.0,0.25709785]
[1740212270144,0.001,96240.0,96239.0,0.25709785]
[1740212273849,0.001,96240.0,96239.0,0.2570978]
[1740212279649,0.001,96240.0,96239.0,0.2408533]
[1740212279848,0.001,96240.0,96239.0,0.2570978]
[1740212285160,0.001,96240.0,96239.0,0.25709778]
[1740212290366,0.001,96240.0,96239.0,0.35757778]
[1740212290866,0.001,96240.0,96239.0,0.3413333]
[1740212293866,0.001,96240.0,96239.0,0.2408533]
[1740212294069,0.001,96240.0,96239.0,0.3092133]
[1740212294653,0.001,96240.0,96239.0,0.2188533]
[1740212294859,0.001,96240.0,96239.0,0.3192133]
[1740212295059,0.001,96240.0,96239.0,0.2188533]
[1740212295361,0.001,96240.0,96239.0,0.3192933]
[1740212295563,0.2088512,96240.0,96239.0,0.2188533]
[1740212295760,0.001,96240.0,96239.0,0.3192933]
[1740212295963,0.0635,96240.0,96239.0,0.3192933]
[1740212296158,0.0635,96240.0,96239.0,0.3193733]
[1740212297670,0.0635,96240.0,96239.0,0.3093733]
[1740212299275,0.2713512,96240.0,96239.0,0.3093733]
[1740212299470,0.2713512,96240.0,96239.0,0.2088533]
[1740212299771,0.0635,96240.0,96239.0,0.3094533]
[1740212299972,0.0635,96240.0,96239.0,0.2088533]
[1740212300176,0.0635,96240.0,96239.0,0.3094933]
[1740212302064,0.0635,96240.0,96239.0,0.32573851]
[1740212303371,0.2713512,96240.0,96239.0,0.32573851]
[1740212303963,0.2713512,96240.0,96239.0,0.3094933]
[1740212304163,0.0635,96240.0,96239.0,0.3094933]
[1740212307669,0.2713512,96240.0,96239.0,0.3094933]
[1740212308173,0.0635,96240.0,96239.0,0.3094933]
[1740212309077,0.2713512,96240.0,96239.0,0.3094933]
[1740212317473,0.0635,96240.0,96239.0,0.3094933]
[1740212319583,0.2713512,96240.0,96239.0,0.3094933]
[1740212328581,0.2713512,96240.0,96239.0,0.2088533]
[1740212331601,0.2813512,96240.0,96239.0,0.2088533]
[1740212332695,0.2813512,96240.0,96239.0,0.001]
[1740212334099,0.2813512,96240.0,96239.0,0.2088533]
[1740212334796,0.2813512,96240.0,96239.0,0.1378345]
[1740212335398,0.0735,96240.0,96236.0,0.0519646]
[1740212335703,0.2178576,96237.0,96236.0,0.2598201]
[1740212336803,0.2178576,96237.0,96236.0,0.2608201]
[1740212337199,0.2188576,96237.0,96236.0,0.2608201]
[1740212338317,0.2198576,96237.0,96236.0,0.2598201]
[1740212339216,0.2078641,96234.0,96233.0,0.259828]
[1740212339409,0.5786641,96234.0,96233.0,0.259828]
[1740212340409,0.3708,96234.0,96227.0,0.0519695]
[1740212340718,0.2598485,96228.0,96227.0,0.207877]
[1740212342310,0.2608485,96228.0,96227.0,0.207877]
[1740212343106,0.2618485,96228.0,96227.0,0.207877]
[1740212347922,0.2098792,96228.0,96227.0,0.207877]
[1740212350510,0.5706792,96228.0,96227.0,0.207877]
[1740212369841,0.2098792,96228.0,96227.0,0.207877]
[1740212370031,0.5706792,96228.0,96227.0,0.207877]
[1740212377337,0.62122098,96228.0,96227.0,0.207877]
[1740212380357,0.26042098,96228.0,96227.0,0.207877]
[1740212380549,0.62122098,96228.0,96227.0,0.207877]
[1740212396475,0.5706792,96228.0,96227.0,0.207877]
[1740212396676,0.72582002,96228.0,96227.0,0.207877]
[1740212397584,0.51794082,96228.0,96227.0,0.207877]
[1740212397886,0.72581792,96228.0,96227.0,0.207877]
[1740212398581,0.51794082,96228.0,96227.0,0.22412472]
[1740212398882,0.72581792,96228.0,96227.0,0.22412472]
[1740212399479,0.51794082,96228.0,96227.0,0.22412472]
[1740212400077,0.3628,96228.0,96227.0,0.22412472]
[1740212401586,0.3628,96228.0,96227.0,0.207877]
[1740212403075,0.15574083,96237.0,96236.0,0.2078598]
[1740212403272,0.15514082,96237.0,96236.0,0.2078598]
[1740212403476,0.15514082,96238.0,96237.0,0.2078576]
[1740212403686,0.15514082,96238.0,96237.0,0.2395576]
[1740212404480,0.15514082,96238.0,96237.0,0.25580317]
[1740212405881,0.15514082,96238.0,96237.0,0.22410317]
[1740212406082,0.15614082,96238.0,96237.0,0.22510305]
[1740212406984,0.001,96238.0,96237.0,0.22510305]
[1740212407878,0.2088555,96238.0,96237.0,0.22510305]
[1740212408976,0.001,96238.0,96237.0,0.22510305]
[1740212411479,0.001,96238.0,96237.0,0.2088576]
[1740212411676,0.001,96238.0,96237.0,0.22510305]
[1740212419391,0.001,96238.0,96237.0,0.22510116]
[1740212422994,0.0619,96251.0,96237.0,0.01724356]
[1740212423198,0.0619,96251.0,96247.0,0.568636]
[1740212423702,0.0619,96251.0,96247.0,0.600536]
[1740212424496,0.01299666,96248.0,96247.0,0.601536]
[1740212425203,0.01399666,96248.0,96247.0,0.601536]
[1740212425893,0.01299666,96248.0,96247.0,0.603536]
[1740212429105,0.01299666,96248.0,96247.0,0.61977955]
[1740212429704,0.01299666,96248.0,96247.0,0.603536]
[1740212432201,0.01299666,96248.0,96247.0,0.61977956]
[1740212440501,0.01299666,96248.0,96247.0,0.603536]
[1740212440706,0.01299666,96248.0,96247.0,0.61977956]
[1740212442609,0.01299666,96248.0,96247.0,0.61977955]
[1740212444417,0.01299666,96248.0,96247.0,0.603536]
[1740212444616,0.01299666,96248.0,96247.0,0.61977953]
[1740212450924,0.01299666,96248.0,96247.0,0.603536]
[1740212453923,0.01299666,96248.0,96247.0,0.79048098]
[1740212463631,0.01299666,96248.0,96247.0,0.75858098]
[1740212464420,0.01299666,96248.0,96247.0,0.571636]
[1740212471528,0.22083056,96248.0,96247.0,0.571636]
[1740212472441,0.22083056,96248.0,96247.0,0.75858098]
[1740212472628,0.23083056,96248.0,96247.0,0.18994498]
[1740212472827,0.23083056,96248.0,96247.0,0.39778098]
[1740212473135,0.23083056,96248.0,96247.0,0.18994498]
[1740212473348,0.207849,96241.0,96240.0,0.00072]
[1740212473539,0.2078512,96240.0,96232.0,0.2715668]
[1740212473734,0.3141512,96240.0,96239.0,0.45666612]
[1740212474646,0.3141512,96240.0,96239.0,0.45766612]
[1740212475737,0.3141512,96240.0,96239.0,0.24981282]
[1740212476036,0.3141512,96240.0,96239.0,0.45766612]
[1740212476237,0.36468919,96240.0,96239.0,0.45766612]
[1740212476438,0.36468919,96240.0,96239.0,0.2088533]
[1740212476638,0.36568919,96240.0,96239.0,0.2088533]
[1740212477140,0.36568919,96240.0,96239.0,0.001]
[1740212477450,0.3608,96267.0,96262.0,3.02857242]
[1740212477747,0.2178015,96263.0,96262.0,2.50869799]
[1740212477947,0.2178015,96263.0,96262.0,1.46894913]
[1740212478239,0.5178015,96263.0,96262.0,0.80908637]
[1740212478439,0.31,96263.0,96253.0,0.36152]
[1740212478645,0.2178209,96254.0,96253.0,0.36095583]
[1740212478832,0.3179409,96254.0,96253.0,0.36095583]
[1740212479037,0.6179009,96254.0,96253.0,0.36095583]
[1740212479752,0.3179009,96254.0,96253.0,0.30002583]
[1740212480241,0.3179009,96254.0,96253.0,0.28441533]
[1740212480448,0.3189009,96254.0,96253.0,0.28441533]
[1740212480642,0.4107009,96254.0,96253.0,0.28441533]
[1740212480846,0.4107009,96254.0,96253.0,0.23131533]
[1740212481043,0.4107009,96254.0,96253.0,0.23231533]
[1740212481550,0.4107009,96254.0,96253.0,0.00115583]
[1740212483239,0.2078512,96240.0,96239.0,0.3608]
[1740212483551,0.2178512,96240.0,96239.0,0.5686533]
[1740212483947,0.2488512,96240.0,96239.0,0.5686533]
[1740212484450,0.2498512,96240.0,96239.0,0.5696533]
[1740212486354,0.2498512,96240.0,96239.0,0.3618]
[1740212487459,0.2498512,96240.0,96239.0,0.001]
[1740212487853,0.3398912,96240.0,96239.0,0.001]
[1740212488066,0.3398912,96240.0,96239.0,0.2088533]
[1740212488259,0.3398912,96240.0,96239.0,0.001]
[1740212488453,0.2398512,96240.0,96239.0,0.2088533]
[1740212488757,0.10108,96240.0,96239.0,0.2088533]
[1740212488958,0.10108,96240.0,96239.0,0.2409533]
[1740212489551,0.11108,96240.0,96239.0,0.2409533]
[1740212489959,0.3189312,96240.0,96239.0,0.2409533]
[1740212490259,0.3189312,96240.0,96239.0,0.0331]
[1740212490960,0.2188512,96240.0,96239.0,0.0331]
[1740212492058,0.2188512,96240.0,96239.0,0.2409533]
[1740212493252,0.2188512,96240.0,96239.0,0.0331]
[1740212495758,0.2188512,96240.0,96239.0,0.001]
[1740212496457,0.3190512,96240.0,96239.0,0.001]
[1740212496762,0.3090512,96240.0,96239.0,0.2399533]
[1740212497064,0.2188512,96240.0,96239.0,0.2399533]
[1740212497357,0.2088512,96240.0,96239.0,0.0321]
[1740212497657,0.2188512,96240.0,96239.0,0.2399533]
[1740212497867,0.2188512,96240.0,96239.0,0.0321]
[1740212498550,0.2188512,96240.0,96239.0,0.2399533]
[1740212498551,0.2088512,96240.0,96239.0,0.2399533]
[1740212498859,0.2088512,96240.0,96239.0,0.0321]
[1740212499060,0.2188512,96240.0,96239.0,0.0321]
[1740212499256,0.2088512,96240.0,96239.0,0.0321]
[1740212499563,0.2188512,96240.0,96239.0,0.0321]
[1740212505765,0.2188512,96240.0,96239.0,0.2399533]
[1740212506464,0.2188512,96240.0,96239.0,0.0321]
[1740212506862,0.2188512,96240.0,96239.0,0.2399533]
[1740212507565,0.2088512,96240.0,96239.0,0.2399533]
[1740212507956,0.001,96240.0,96239.0,0.2399533]
[1740212514764,0.001,96240.0,96239.0,0.3400333]
[1740212520368,1e-07,96240.0,96239.0,0.3400333]
[1740212520570,1e-07,96240.0,96239.0,0.35121093]
[1740212521973,1e-07,96240.0,96239.0,0.3400333]
[1740212532876,1e-07,96240.0,96239.0,0.3091333]
[1740212534076,0.2078513,96240.0,96239.0,0.3091333]
[1740212535574,0.2078513,96240.0,96239.0,0.2088533]
[1740212535982,0.2178513,96240.0,96239.0,0.2088533]
[1740212539988,0.2178513,96240.0,96239.0,0.001]
[1740212541271,0.02404859,96876.0,96254.0,4.02840476]
[1740212541476,0.2178188,96255.0,96254.0,4.02840476]
[1740212541678,0.23212898,96255.0,96254.0,4.02840476]
[1740212541884,0.53212898,96255.0,96254.0,4.02840476]
[1740212542586,2.03312898,96255.0,96254.0,4.02940476]
[1740212544282,2.03312898,96255.0,96254.0,4.00921744]
[1740212544478,2.12972898,96255.0,96254.0,4.00921744]
[1740212545278,2.18027053,96255.0,96254.0,4.00921744]
[1740212553187,1.88027053,96255.0,96254.0,4.00921744]
[1740212553391,0.27367053,96255.0,96254.0,4.00921744]
[1740212553582,0.37383053,96255.0,96254.0,4.00921744]
[1740212553988,0.27367053,96255.0,96254.0,4.00921744]
[1740212554192,0.06585173,96255.0,96254.0,4.21703834]
[1740212554786,0.28367053,96255.0,96254.0,4.21703834]
[1740212555680,0.07585173,96255.0,96254.0,4.21703834]
[1740212556286,0.28367053,96255.0,96254.0,4.21703834]
[1740212556490,0.07585173,96255.0,96254.0,4.21703834]
[1740212557087,0.28367053,96255.0,96254.0,4.21703834]
[1740212557291,0.07585173,96255.0,96254.0,4.21703834]
[1740212557895,0.28367053,96255.0,96254.0,4.21703834]
[1740212558891,0.07585173,96255.0,96254.0,4.21703834]
[1740212560988,0.02531018,96255.0,96254.0,4.21703834]
[1740212564998,0.001,96255.0,96254.0,4.21703834]
[1740212565502,0.011,96255.0,96254.0,4.21703834]
[1740212565698,0.001,96255.0,96254.0,4.21703834]
[1740212565999,0.011,96255.0,96254.0,4.21703834]
[1740212566300,0.001,96255.0,96254.0,4.21703834]
[1740212567700,0.011,96255.0,96254.0,4.21703834]
[1740212568593,0.001,96255.0,96254.0,4.21703834]
[1740212568793,0.011,96255.0,96254.0,4.21703834]
[1740212570100,0.011,96255.0,96254.0,4.57783834]
[1740212571289,0.001,96255.0,96254.0,4.57783834]
[1740212571489,0.0010257,96264.0,96263.0,0.2078015]
[1740212571692,0.0010257,96264.0,96263.0,0.5686015]
[1740212572092,0.18560445,96271.0,96269.0,0.2077885]
[1740212572294,0.39338945,96271.0,96269.0,0.2077885]
[1740212572599,0.18560445,96271.0,96269.0,0.2392885]
[1740212572799,0.39338895,96271.0,96269.0,0.2392885]
[1740212572995,0.18560445,96271.0,96269.0,0.2392885]
[1740212573195,0.02,96270.0,96269.0,0.2392885]
[1740212573803,0.01,96270.0,96269.0,0.2392885]
[1740212574102,0.02,96270.0,96269.0,0.2392885]
[1740212574288,0.031,96270.0,96269.0,0.2392885]
[1740212575098,0.021,96270.0,96269.0,0.2392885]
[1740212575307,0.031,96270.0,96269.0,0.2709885]
[1740212575499,0.021,96270.0,96269.0,0.2709885]
[1740212576803,0.031,96270.0,96269.0,0.2709885]
[1740212577594,0.021,96270.0,96269.0,0.2709885]
[1740212578303,0.031,96270.0,96269.0,0.2709885]
[1740212578506,0.021,96270.0,96269.0,0.2709885]
[1740212578999,0.031,96270.0,96269.0,0.2709885]
[1740212579202,0.021,96270.0,96269.0,0.2709885]
[1740212579605,0.031,96270.0,96269.0,0.2709885]
[1740212580591,0.021,96270.0,96269.0,0.2709885]
[1740212580797,0.00015583,96279.0,96278.0,0.2077691]
[1740212581701,0.23174757,96279.0,96278.0,0.2077691]
[1740212581902,0.23874757,96279.0,96278.0,0.2077691]
[1740212582705,0.03098057,96279.0,96278.0,0.2077691]
[1740212582903,0.22874757,96279.0,96278.0,0.2077691]
[1740212583207,0.03098057,96279.0,96278.0,0.2077691]
[1740212583609,0.03798057,96279.0,96278.0,0.2087691]
[1740212584108,0.24574757,96279.0,96278.0,0.2087691]
[1740212584408,0.24574757,96279.0,96278.0,0.2397691]
[1740212584409,0.03798057,96279.0,96278.0,0.2397691]
[1740212584605,0.24574757,96279.0,96278.0,0.2397691]
[1740212585203,0.02798057,96279.0,96278.0,0.2397691]
[1740212585411,0.24574757,96279.0,96278.0,0.2397691]
[1740212587108,0.24574757,96279.0,96278.0,0.2087691]
[1740212596620,0.24574757,96279.0,96278.0,0.2390691]
[1740212597917,0.24574757,96279.0,96278.0,0.0313]
[1740212600319,0.5333,96313.0,96290.0,2.76310125]
[1740212600509,0.3177811,96291.0,96290.0,2.76310125]
[1740212600708,0.33522752,96291.0,96290.0,2.76310125]
[1740212600910,0.63522752,96291.0,96290.0,2.74110125]
[1740212601111,0.9981381,96291.0,96290.0,2.28702031]
[1740212601420,0.9981381,96291.0,96290.0,1.81421821]
[1740212601617,0.9981381,96291.0,96290.0,1.66884294]
[1740212601824,0.9981381,96291.0,96290.0,1.08735653]
[1740212602119,0.9981381,96291.0,96290.0,0.93898305]
[1740212602716,1.0041381,96291.0,96290.0,0.93998305]
[1740212603315,1.0101381,96291.0,96290.0,0.93998305]
[1740212603517,1.0622381,96291.0,96290.0,0.93998305]
[1740212604111,1.0622381,96291.0,96290.0,0.59185174]
[1740212606922,1.34061231,96291.0,96290.0,0.37354091]
[1740212607309,1.34061231,96291.0,96290.0,0.0254096]
[1740212608515,0.97981231,96291.0,96290.0,0.0254096]
[1740212608715,1.34061231,96291.0,96290.0,0.0254096]
[1740212608910,0.2077778,96274.0,96273.0,0.3608]